bitfinex-derivatives/quotes_SOLF0:USTF0_20260312
["timestamp","ask_amount","ask_price","bid_price","bid_amount"]
[1773281196090,15.63796647,86.062,86.016,5.05034612]
[1773281199295,5.18096647,86.061,86.016,5.05034612]
[1773281199794,10.79577701,86.117,85.997,36.58]
[1773281199795,10.79577701,86.119,86.041,5.05034612]
[1773281199990,2.5194788,86.1,86.041,5.05034612]
[1773281200485,10.454,86.086,86.041,5.05034612]
[1773281201185,36.58,86.131,86.041,5.05034612]
[1773281201186,2.5194788,86.08,86.041,5.05034612]
[1773281202598,10.456,86.067,86.041,5.05034612]
[1773281202792,2.5194788,86.08,86.041,5.05034612]
[1773281202987,2.5194788,86.09,86.041,5.05034612]
[1773281203187,2.78143757,86.089,86.041,5.05034612]
[1773281203591,2.5194788,86.08,86.041,5.05034612]
[1773281204496,10.455,86.077,86.041,5.05034612]
[1773281208396,0.07320224,86.068,86.041,5.05034612]
[1773281212703,34.91,86.098,86.041,5.05034612]
[1773281212704,2.86473358,86.089,86.041,5.05034612]
[1773281213008,35.12945603,86.137,86.041,5.05034612]
[1773281213009,2.86473358,86.079,86.041,5.05034612]
[1773281214509,13.31973358,86.079,86.041,5.05034612]
[1773281217105,10.456,86.071,86.041,5.05034612]
[1773281217612,10.456,86.071,86.051,0.07330992]
[1773281218421,10.457,86.062,86.01,2.5194788]
[1773281220409,10.457,86.062,86.011,5.21380059]
[1773281220811,10.457,86.062,86.014,5.21380059]
[1773281221011,10.457,86.062,86.021,5.21380059]
[1773281221406,15.31616956,86.051,86.01,5.21380059]
[1773281221806,2.5194788,86.06,86.01,5.21380059]
[1773281222813,7.37764836,86.06,86.01,5.21380059]
[1773281227021,4.85816956,86.059,86.01,5.21380059]
[1773281228418,4.85816956,86.054,86.01,5.21380059]
[1773281232028,4.85816956,86.049,86.01,5.21380059]
[1773281232531,4.85816956,86.037,86.0,5.21380059]
[1773281237033,4.85816956,86.026,85.982,5.21380059]
[1773281237522,15.31916956,86.026,85.982,5.21380059]
[1773281237833,4.85816956,86.039,85.982,5.21380059]
[1773281238131,4.85816956,86.029,85.982,5.21380059]
[1773281239027,4.85816956,86.018,85.982,5.21380059]
[1773281244739,5.15623047,86.005,85.966,5.09590639]
[1773281245032,5.15623047,85.999,85.955,5.09590639]
[1773281245239,2.5194788,85.99,85.955,5.09590639]
[1773281246438,10.465,85.989,85.955,5.09590639]
[1773281249341,5.15623047,85.999,85.955,5.09590639]
[1773281249342,5.15623047,85.998,85.955,5.09590639]
[1773281250133,5.15623047,85.998,85.94,2.5194788]
[1773281250134,5.15623047,85.979,85.925,5.09590639]
[1773281250335,5.15623047,85.959,85.925,5.09590639]
[1773281250538,2.5194788,85.95,85.912,5.09590639]
[1773281251442,5.15623047,85.949,85.912,5.09590639]
[1773281251642,7.67570927,85.96,85.912,5.09590639]
[1773281252342,5.15623047,85.957,85.912,5.09590639]
[1773281252539,2.5194788,85.95,85.912,5.09590639]
[1773281254344,34.91,85.985,85.912,5.09590639]
[1773281254345,2.5194788,85.96,85.912,5.09590639]
[1773281255838,5.15623047,85.959,85.912,5.09590639]
[1773281256145,2.5194788,85.95,85.912,5.09590639]
[1773281258241,10.469,85.964,85.912,5.09590639]
[1773281258442,2.5194788,85.95,85.912,5.09590639]
[1773281259246,10.469,85.964,85.912,5.09590639]
[1773281259447,2.5194788,85.95,85.912,5.09590639]
[1773281259642,5.15623047,85.949,85.912,5.09590639]
[1773281260745,2.5194788,85.94,85.912,5.09590639]
[1773281261146,5.15623047,85.949,85.912,5.09590639]
[1773281265446,5.07017959,85.939,85.9,5.49492824]
[1773281265741,2.52699742,85.93,85.9,5.49492824]
[1773281267149,5.07017959,85.939,85.9,5.49492824]
[1773281270052,2.52699742,85.95,85.9,5.49492824]
[1773281270254,5.12016792,85.963,85.911,5.02999231]
[1773281270453,2.52699742,85.96,85.911,5.02999231]
[1773281272154,10.467,85.975,85.921,5.02999231]
[1773281272357,15.58716792,85.975,85.921,5.02999231]
[1773281272547,15.58816792,85.969,85.921,5.02999231]
[1773281272755,5.12016792,85.968,85.921,5.02999231]
[1773281273249,15.58716792,85.979,85.921,5.02999231]
[1773281273451,5.12016792,85.979,85.931,5.02999231]
[1773281273646,2.52699742,85.99,85.931,5.02999231]
[1773281274349,5.12016792,85.991,85.941,5.02999231]
[1773281274554,7.64716534,86.0,85.941,5.02999231]
[1773281274956,5.12016792,86.028,85.961,5.02999231]
[1773281275253,5.12016792,86.028,85.981,5.02999231]
[1773281275646,5.12016792,86.041,85.991,5.02999231]
[1773281278156,0.07346398,86.025,85.991,5.02999231]
[1773281280856,15.57716792,86.058,86.001,5.02999231]
[1773281281060,285.53197068,86.063,86.011,5.02999231]
[1773281281759,290.6521386,86.063,86.011,5.02999231]
[1773281282059,290.6521386,86.063,86.021,5.02999231]
[1773281282256,10.456,86.07,86.021,5.02999231]
[1773281283358,12.98299742,86.07,86.021,5.02999231]
[1773281283558,10.456,86.07,86.021,5.02999231]
[1773281284057,5.12016792,86.076,86.021,5.02999231]
[1773281285869,5.12016792,86.076,86.04,0.0732646]
[1773281288764,5.12016792,86.069,86.04,0.0732646]
[1773281292162,5.12016792,86.081,86.04,0.0732646]
[1773281292464,5.12016792,86.099,86.041,5.02999231]
[1773281293463,2.52699742,86.09,86.041,5.02999231]
[1773281293663,5.12016792,86.089,86.041,5.02999231]
[1773281294870,10.452,86.097,86.041,5.02999231]
[1773281295071,5.12016792,86.079,86.029,5.02999231]
[1773281295371,2.52699742,86.06,86.029,5.02999231]
[1773281295666,5.12016792,86.059,86.016,5.02999231]
[1773281297671,2.52699742,86.06,86.016,5.02999231]
[1773281298572,7.64716534,86.07,86.016,5.02999231]
[1773281298765,5.12016792,86.069,86.016,5.02999231]
[1773281300766,5.40183461,86.067,86.016,5.02999231]
[1773281302370,10.455,86.078,86.021,5.46576486]
[1773281302773,15.85683461,86.078,86.021,5.46576486]
[1773281303167,5.40183461,86.077,86.021,5.46576486]
[1773281303374,5.40183461,86.077,86.024,5.46576486]
[1773281303569,5.40183461,86.075,86.024,5.46576486]
[1773281303971,5.40183461,86.069,86.024,5.46576486]
[1773281305977,5.40183461,86.086,86.024,5.46576486]
[1773281306184,5.40183461,86.086,86.03,2.52699742]
[1773281306373,5.40183461,86.086,86.031,5.46576486]
[1773281307071,10.454,86.085,86.033,5.46576486]
[1773281307876,5.40183461,86.084,86.033,5.46576486]
[1773281308770,5.40183461,86.059,85.975,5.46576486]
[1773281308974,2.52699742,86.04,85.981,5.46576486]
[1773281309174,2.52699742,86.06,86.001,5.46576486]
[1773281310271,2.52699742,86.06,86.022,0.07339698]
[1773281310466,5.40183461,86.064,86.022,0.07339698]
[1773281310672,5.40183461,86.064,86.022,5.53916184]
[1773281315676,5.40183461,86.059,86.022,0.07339698]
[1773281318182,2.52699742,86.05,86.022,0.07339698]
[1773281319682,5.40183461,86.059,86.022,0.07339698]
[1773281324190,5.14124869,86.049,86.022,0.07339698]
[1773281324795,5.14124869,86.066,86.011,5.46576486]
[1773281325088,5.14124869,86.064,86.011,5.46576486]
[1773281326197,5.14124869,86.064,86.017,5.43653816]
[1773281329589,5.14124869,86.064,86.032,0.07359685]
[1773281330493,10.457,86.058,86.032,0.07359685]
[1773281330798,8.08787159,86.05,86.006,5.38512263]
[1773281331096,5.56781136,86.05,86.006,5.38512263]
[1773281331696,5.56781136,86.05,86.008,5.38512263]
[1773281334600,10.457,86.058,86.011,5.38512263]
[1773281334898,5.56781136,86.057,86.011,5.38512263]
[1773281341407,5.56781136,86.057,86.013,5.38512263]
[1773281350608,9.71893513,86.056,85.973,8.01356755]
[1773281350808,44.60893513,86.055,85.973,8.01356755]
[1773281351013,2.52006023,86.05,85.992,7.95614277]
[1773281351204,2.52006023,86.06,86.001,7.95614277]
[1773281351412,10.458,86.049,86.001,7.95614277]
[1773281352411,2.52006023,86.04,86.001,7.95614277]
[1773281353215,10.459,86.038,86.001,7.95614277]
[1773281353411,2.52006023,86.04,86.001,7.95614277]
[1773281354719,10.458,86.048,86.001,7.95614277]
[1773281356021,10.457,86.058,86.001,7.95614277]
[1773281356417,10.457,86.058,86.003,7.92410723]
[1773281361124,0.07357653,86.039,86.003,7.92410723]
[1773281367019,0.07357653,86.039,85.978,36.58]
[1773281367321,0.07357653,86.039,85.971,7.86950534]
[1773281367322,2.52006023,86.02,85.971,7.86950534]
[1773281368322,2.52006023,86.02,85.972,7.86972835]
[1773281368526,2.52006023,86.03,85.972,7.86972835]
[1773281368923,2.52006023,86.03,85.974,7.86972835]
[1773281369127,10.459,86.039,85.974,7.86972835]
[1773281370134,2.52006023,86.03,85.974,7.86972835]
[1773281370426,2.52006023,86.03,85.978,7.72227018]
[1773281371830,10.459,86.039,85.983,7.71894976]
[1773281373329,10.459,86.039,85.984,10.466]
[1773281373522,10.459,86.039,85.985,7.72018422]
[1773281373932,0.07335469,86.02,85.985,7.72018422]
[1773281376228,0.07335469,86.02,85.963,36.58]
[1773281376229,2.52006023,86.01,85.971,7.72197991]
[1773281379635,34.89,86.043,85.952,7.83695364]
[1773281379636,2.52006023,86.0,85.952,7.83695364]
[1773281383541,2.52354465,86.0,85.952,7.83695364]
[1773281383736,12.98554465,86.02,85.96,2.52354465]
[1773281383940,10.462,86.02,85.971,7.83423396]
[1773281385445,12.98554465,86.02,85.971,7.83423396]
[1773281386340,10.462,86.02,85.971,7.83423396]
[1773281386639,10.46,86.03,85.981,7.87574943]
[1773281387043,12.98354465,86.03,85.981,7.87574943]
[1773281389546,34.89,86.056,86.007,7.86556505]
[1773281389744,2.52354465,86.07,86.011,7.86556505]
[1773281391549,10.456,86.066,86.011,7.86556505]
[1773281392443,0.0732772,86.043,86.011,7.86556505]
[1773281396249,0.0732772,86.043,85.999,8.00938917]
[1773281396747,2.52354465,86.05,85.999,8.00938917]
[1773281397547,10.459,86.046,85.999,8.00938917]
[1773281398051,2.52354465,86.06,86.001,8.00613157]
[1773281400750,2.52354465,86.05,86.001,8.00613157]
[1773281401950,0.07325205,86.034,86.001,8.00613157]
[1773281404953,0.07325205,86.034,86.001,18.47013157]
[1773281405354,0.07325205,86.034,86.002,8.00305488]
[1773281407460,0.07325205,86.034,86.003,8.02882632]
[1773281412262,10.457,86.059,86.011,8.04170125]
[1773281412462,10.456,86.07,86.021,8.04170125]
[1773281414661,10.451,86.107,86.051,8.04114317]
[1773281415959,10.451,86.107,86.03,36.58]
[1773281415960,10.45,86.119,86.061,8.06452335]
[1773281422367,10.45,86.119,86.071,8.07894895]
[1773281425469,34.89,86.159,86.071,8.07894895]
[1773281425672,2.52354465,86.13,86.076,8.073439]
[1773281425872,10.448,86.133,86.076,8.073439]
[1773281426073,2.52354465,86.13,86.076,8.073439]
[1773281426268,2.52354465,86.12,86.076,8.073439]
[1773281426473,2.52354465,86.11,86.051,8.07362713]
[1773281426674,2.52354465,86.1,86.051,8.07362713]
[1773281426972,12.97454465,86.11,86.053,8.07362713]
[1773281427167,2.52354465,86.12,86.061,8.08848464]
[1773281428473,2.52354465,86.13,86.071,8.08867441]
[1773281428676,2.52354465,86.13,86.081,8.08867441]
[1773281430968,10.448,86.129,86.081,8.08867441]
[1773281433070,2.52354465,86.11,86.035,8.08958255]
[1773281433370,36.58,86.163,86.061,8.08958255]
[1773281433371,2.52354465,86.12,86.061,8.08958255]
[1773281433674,2.52354465,86.12,86.07,2.52354465]
[1773281433875,2.52354465,86.12,86.071,8.08958255]
[1773281434175,2.52354465,86.13,86.071,8.08958255]
[1773281434373,10.449,86.125,86.072,8.08975817]
[1773281434975,10.45,86.119,86.072,8.08975817]
[1773281436673,2.52354465,86.11,86.072,8.08975817]
[1773281437078,10.45,86.119,86.072,8.08975817]
[1773281440076,2.52354465,86.12,86.072,8.08975817]
[1773281440378,10.449,86.128,86.072,8.08975817]
[1773281440779,2.52354465,86.12,86.072,8.08975817]
[1773281441371,2.52354465,86.12,86.074,10.455]
[1773281441576,2.52354465,86.12,86.075,8.09093592]
[1773281443685,10.45,86.119,86.075,8.09093592]
[1773281443887,2.51620472,86.11,86.061,8.09113067]
[1773281444086,34.89,86.152,86.061,8.09113067]
[1773281444087,2.51620472,86.12,86.061,8.09113067]
[1773281444887,10.451,86.106,86.061,8.09113067]
[1773281445185,2.51620472,86.12,86.061,8.09113067]
[1773281445985,2.51620472,86.12,86.066,8.09144603]
[1773281446488,10.449,86.125,86.071,8.09160088]
[1773281449691,10.45,86.119,86.071,8.09160088]
[1773281451894,2.51620472,86.11,86.056,8.09305711]
[1773281453386,10.452,86.102,86.056,8.09305711]
[1773281454390,2.51620472,86.09,86.044,8.0934645]
[1773281455197,10.453,86.089,86.044,8.0934645]
[1773281456201,2.51620472,86.08,86.044,8.0934645]
[1773281456993,10.453,86.089,86.044,8.0934645]
[1773281457591,12.97020472,86.08,86.044,8.0934645]
[1773281459200,2.51620472,86.07,86.033,8.09398062]
[1773281461697,10.454,86.08,86.033,8.09398062]
[1773281461698,12.97020472,86.08,86.033,8.09398062]
[1773281462601,36.56,86.111,86.003,36.56]
[1773281462602,2.51620472,86.06,86.016,8.09447702]
[1773281464503,2.51620472,86.07,86.016,8.09447702]
[1773281465503,10.456,86.068,86.016,8.09447702]
[1773281467107,2.51620472,86.06,86.016,8.09447702]
[1773281473210,10.456,86.068,86.016,8.09447702]
[1773281474112,12.97320472,86.06,86.016,8.09447702]
[1773281474609,2.51620472,86.05,86.005,8.09549879]
[1773281474810,173.32938868,86.124,86.005,8.09549879]
[1773281474811,2.51620472,86.04,86.005,8.09549879]
[1773281475812,10.458,86.048,86.005,8.09549879]
[1773281481218,34.89,86.089,86.005,8.09549879]
[1773281481219,10.457,86.057,86.005,8.09549879]
[1773281483223,2.51620472,86.05,86.005,8.09549879]
[1773281483918,10.458,86.049,86.005,8.09549879]
[1773281485311,10.458,86.049,85.994,10.465]
[1773281485312,10.46,86.037,85.986,8.09260005]
[1773281485514,2.51620472,86.03,85.986,8.09260005]
[1773281486318,10.461,86.027,85.986,8.09260005]
[1773281487118,10.462,86.019,85.986,8.09260005]
[1773281487316,2.51620472,86.03,85.986,8.09260005]
[1773281487513,34.89,86.075,85.986,8.09260005]
[1773281487819,2.51620472,86.02,85.986,8.09260005]
[1773281488222,34.89,86.069,85.986,8.09260005]
[1773281488416,2.51620472,86.02,85.986,8.09260005]
[1773281489319,10.462,86.015,85.986,8.09260005]
[1773281490318,10.462,86.015,85.992,0.07336308]
[1773281491723,2.51620472,86.01,85.974,8.09147634]
[1773281491923,10.463,86.009,85.974,8.09147634]
[1773281493619,10.461,86.03,85.974,8.09147634]
[1773281493828,12.97720472,86.03,85.974,8.09147634]
[1773281494224,2.51620472,86.03,85.974,8.09147634]
[1773281495226,2.51620472,86.02,85.974,8.09147634]
[1773281496322,2.51620472,86.03,85.974,8.09147634]
[1773281497323,10.461,86.027,85.974,8.09147634]
[1773281499328,10.461,86.027,85.97,2.51620472]
[1773281499329,10.459,86.041,85.975,8.0900944]
[1773281499529,2.51620472,86.04,85.981,8.0900944]
[1773281500330,10.46,86.038,85.985,10.466]
[1773281500530,10.46,86.038,85.986,8.08993135]
[1773281501936,10.461,86.03,85.986,8.08993135]
[1773281502438,12.97520472,86.04,85.986,8.08993135]
[1773281503532,12.97520472,86.04,85.988,8.08944966]
[1773281503738,12.98042364,86.04,85.988,8.08944966]
[1773281508344,12.97942364,86.05,85.992,8.18321053]
[1773281509342,12.97942364,86.05,85.994,8.18303861]
[1773281510042,10.459,86.041,85.994,8.18303861]
[1773281510233,2.52142364,86.03,85.994,8.18303861]
[1773281510639,0.07327369,86.031,85.994,8.18303861]
[1773281519548,2.52142364,86.02,85.984,8.17629387]
[1773281521353,10.462,86.019,85.984,8.17629387]
[1773281522052,2.52142364,86.02,85.984,8.17629387]
[1773281522053,10.461,86.028,85.984,8.17629387]
[1773281522252,2.52142364,86.04,85.984,8.17629387]
[1773281522554,2.52142364,86.05,85.991,8.1346341]
[1773281522754,2.52142364,86.06,86.001,8.1346341]
[1773281523456,2.52142364,86.08,86.021,8.13449433]
[1773281524451,10.456,86.07,86.021,8.13449433]
[1773281525154,12.97542364,86.08,86.021,8.13449433]
[1773281529252,10.454,86.08,86.031,8.09576438]
[1773281534362,10.453,86.089,86.031,8.09576438]
[1773281535058,10.454,86.08,86.031,8.09576438]
[1773281540859,10.455,86.071,86.031,8.09576438]
[1773281546566,10.456,86.063,86.031,8.09576438]
[1773281546766,10.456,86.063,86.014,8.02806877]
[1773281547670,31.62500197,86.115,86.021,8.0279814]
[1773281547671,10.455,86.073,86.021,8.0279814]
[1773281550364,10.457,86.062,86.021,8.0279814]
[1773281553163,10.455,86.073,86.021,8.0279814]
[1773281555475,5.8941963,86.111,86.06,7.91570981]
[1773281556078,5.8941963,86.108,86.06,5.39428617]
[1773281556581,5.8941963,86.108,86.005,28.97395752]
[1773281556582,5.8941963,86.069,86.029,5.39428617]
[1773281561078,5.8941963,86.069,86.013,10.462]
[1773281561079,5.28525139,86.063,86.018,5.39428617]
[1773281561378,10.72400197,86.117,86.018,5.39428617]
[1773281561379,5.3551109,86.059,86.018,5.39428617]
[1773281562482,4.03063612,86.058,86.018,5.39428617]
[1773281563280,2.52142364,86.06,86.01,36.58]
[1773281563281,3.3773793,86.054,86.01,36.58]
[1773281564376,2.73229198,86.051,86.01,36.58]
[1773281566687,2.73229198,86.051,86.01,41.41247631]
[1773281566987,2.73229198,86.051,86.011,4.83247631]
[1773281567389,2.5205439,86.03,85.984,4.83247631]
[1773281567591,5.21491345,86.03,85.984,4.83247631]
[1773281568486,10.461,86.028,85.984,4.83247631]
[1773281569488,2.81335249,86.027,85.984,4.83247631]
[1773281571483,9.37834722,86.073,85.984,4.83247631]
[1773281571484,2.93278119,86.038,85.984,4.83247631]
[1773281571688,2.93278119,86.038,85.991,3.71410049]
[1773281575696,2.92773216,86.019,85.98,3.71410049]
[1773281576594,2.92773216,86.019,85.991,0.07328698]
[1773281582001,2.95608321,86.009,85.991,0.07328698]
[1773281582195,2.95608321,86.009,85.972,36.6]
[1773281583496,2.5205439,86.0,85.969,3.71410049]
[1773281583899,2.95608321,86.009,85.969,3.71410049]
[1773281584400,2.5205439,86.02,85.969,3.71410049]
[1773281585902,3.00320451,86.009,85.969,3.71410049]
[1773281586506,2.99597465,85.999,85.965,36.6]
[1773281595810,2.5205439,86.0,85.966,3.71410049]
[1773281596014,3.05828264,86.009,85.966,3.71410049]
[1773281596309,10.462,86.019,85.966,3.71410049]
[1773281596705,2.5205439,86.03,85.971,3.71410049]
[1773281596911,3.06296641,86.032,85.981,3.71410049]
[1773281598311,10.461,86.029,85.981,3.71410049]
[1773281599819,3.06296641,86.032,85.981,3.71410049]
[1773281600516,10.46,86.031,85.981,3.71410049]
[1773281600718,3.05416457,86.029,85.981,3.71410049]
[1773281602418,3.06121,86.026,85.981,3.71410049]
[1773281609924,10.461,86.025,85.981,3.71410049]
[1773281610122,13.44858601,86.025,85.981,3.71410049]
[1773281610523,3.90244349,86.059,86.011,2.74913793]
[1773281610728,3.90244349,86.049,85.998,2.74913793]
[1773281611029,36.6,86.092,85.998,2.74913793]
[1773281611030,3.90244349,86.039,85.998,2.74913793]
[1773281611428,3.90244349,86.036,85.998,2.74913793]
[1773281612122,3.90244349,86.033,85.998,2.74913793]
[1773281612423,3.90244349,86.033,85.98,2.5205439]
[1773281612424,3.90244349,86.033,85.981,2.84440774]
[1773281612624,3.90244349,86.029,85.981,2.84440774]
[1773281612824,3.90244349,86.019,85.981,2.84440774]
[1773281613524,10.462,86.015,85.981,2.84440774]
[1773281616024,10.461,86.028,85.981,2.84440774]
[1773281616225,3.90244349,86.027,85.981,2.84440774]
[1773281616930,3.90244349,86.025,85.981,2.84440774]
[1773281618230,3.90244349,86.019,85.981,2.84440774]
[1773281619530,10.462,86.016,85.981,2.84440774]
[1773281620629,3.90244349,86.019,85.981,2.84440774]
[1773281626937,3.74168457,86.034,85.981,2.84440774]
[1773281627538,3.74168457,86.034,85.991,2.80712411]
[1773281627539,10.46,86.032,85.991,2.80712411]
[1773281627737,3.74168457,86.067,86.021,2.80712411]
[1773281628342,10.455,86.077,86.031,2.79292032]
[1773281628540,3.74168457,86.08,86.041,2.79292032]
[1773281628937,3.74168457,86.099,86.041,2.79292032]
[1773281629340,10.453,86.088,86.041,2.79292032]
[1773281629536,3.74168457,86.099,86.051,2.79292032]
[1773281629942,3.74168457,86.087,86.04,2.5220653]
[1773281630846,10.454,86.084,86.04,2.5220653]
[1773281634548,3.74168457,86.087,86.041,2.76479843]
[1773281640551,3.81753309,86.085,86.041,2.76479843]
[1773281641450,2.5220653,86.09,86.041,2.76479843]
[1773281641451,3.81753309,86.083,86.041,2.76479843]
[1773281643751,3.81753309,86.076,86.041,2.76479843]
[1773281644058,3.81753309,86.076,86.03,2.5220653]
[1773281644457,3.81753309,86.076,86.029,2.76072818]
[1773281645059,0.07369818,86.061,86.029,2.76072818]
[1773281645761,3.89123127,86.061,86.029,2.76072818]
[1773281651164,3.89123127,86.061,86.012,10.463]
[1773281651165,3.89123127,86.061,86.017,2.71660598]
[1773281651365,3.89123127,86.061,86.02,2.5220653]
[1773281651965,3.89123127,86.061,86.021,2.71660598]
[1773281652466,3.89123127,86.061,86.011,2.7170959]
[1773281652467,3.81753309,86.058,86.011,2.7170959]
[1773281657969,10.456,86.066,86.021,2.72190068]
[1773281658163,3.81753309,86.071,86.031,2.72232512]
[1773281658362,3.81753309,86.089,86.031,2.72232512]
[1773281659367,2.5220653,86.09,86.031,2.72232512]
[1773281659368,3.81753309,86.087,86.031,2.72232512]
[1773281660369,3.92761089,86.081,86.031,2.72232512]
[1773281660867,36.89209781,86.123,86.031,2.72232512]
[1773281660868,3.92761089,86.079,86.031,2.72232512]
[1773281661671,3.92761089,86.076,86.031,2.72232512]
[1773281665766,3.92761089,86.072,86.031,2.72232512]
[1773281665973,3.92761089,86.072,86.021,2.70400181]
[1773281666878,3.92761089,86.068,86.021,2.70400181]
[1773281669080,3.92761089,86.062,86.021,2.70400181]
[1773281670984,2.5220653,86.07,86.021,2.70400181]
[1773281671178,3.92761089,86.072,86.021,2.70400181]
[1773281671477,3.92761089,86.072,86.031,2.70041789]
[1773281673782,3.92761089,86.069,86.015,2.70669523]
[1773281675484,3.92761089,86.065,86.015,2.70669523]
[1773281678387,3.92761089,86.065,86.017,2.64486571]
[1773281679584,3.92761089,86.065,86.021,2.64486571]
[1773281681789,2.5220653,86.08,86.021,2.64486571]
[1773281681790,3.90082162,86.063,86.021,2.64486571]
[1773281683381,3.90082162,86.053,85.998,2.64065037]
[1773281683582,3.90082162,86.049,85.998,2.64065037]
[1773281684387,3.90082162,86.04,85.998,2.64065037]
[1773281685086,3.90082162,86.039,85.998,2.64065037]
[1773281689090,3.90082162,86.036,85.986,2.64375352]
[1773281689792,3.90082162,86.034,85.986,2.64375352]
[1773281691491,3.94998859,86.032,85.986,2.64375352]
[1773281694894,0.07372927,86.018,85.986,2.64375352]
[1773281697895,3.94998859,86.05,85.99,2.52127628]
[1773281698091,2.52127628,86.04,85.99,2.5435647]
[1773281698396,3.94998859,86.039,85.99,2.5435647]
[1773281699396,3.94998859,86.037,85.99,2.5435647]
[1773281700695,3.94998859,86.019,85.952,28.87969247]
[1773281700899,3.94998859,86.019,85.912,20.95]
[1773281700900,3.94998859,86.009,85.958,2.65918871]
[1773281701097,3.94998859,86.009,85.962,2.65918871]
[1773281701498,10.462,86.02,85.971,2.65918871]
[1773281701698,3.94998859,86.015,85.971,2.65918871]
[1773281702193,3.94998859,86.037,85.971,2.65918871]
[1773281702504,3.94998859,86.039,85.981,2.62373923]
[1773281703193,3.94998859,86.034,86.001,0.07369631]
[1773281703393,3.94998859,86.029,86.001,0.07369631]
[1773281703997,3.94998859,86.044,86.001,2.69743554]
[1773281712416,3.94998859,86.044,86.002,2.6585588]
[1773281714310,3.94998859,86.039,86.001,0.07369631]
[1773281715019,3.94998859,86.039,85.991,2.67376835]
[1773281715220,3.94998859,86.039,86.011,0.07328291]
[1773281715522,3.94998859,86.033,86.011,0.07328291]
[1773281716015,3.94998859,86.033,85.991,2.67376835]
[1773281716219,3.94998859,86.029,85.979,2.67328595]
[1773281717419,3.94998859,86.028,85.979,2.67328595]
[1773281717814,3.94998859,86.043,85.991,2.67328595]
[1773281719418,3.94998859,86.039,85.991,2.67328595]
[1773281721025,3.70252854,86.036,85.985,36.6]
[1773281722426,3.70252854,86.025,85.985,36.6]
[1773281723523,3.70252854,86.025,85.996,0.07374761]
[1773281723721,3.70252854,86.014,85.985,36.6]
[1773281723924,3.70252854,86.014,85.967,2.69044767]
[1773281724731,3.70252854,86.01,85.967,2.69044767]
[1773281725131,3.70252854,86.01,85.97,2.52127628]
[1773281725431,3.70252854,86.01,85.97,5.32917311]
[1773281725631,0.0736107,85.997,85.97,5.32917311]
[1773281726030,3.70252854,86.046,85.971,2.80789683]
[1773281726330,3.70252854,86.046,85.962,36.6]
[1773281726331,3.70252854,86.046,86.0,2.52127628]
[1773281726732,3.70252854,86.045,85.993,2.73392714]
[1773281726933,3.70252854,86.045,86.0,2.52127628]
[1773281727133,3.70252854,86.045,86.0,5.25520342]
[1773281728335,10.459,86.042,86.0,5.25520342]
[1773281729938,14.16152854,86.042,86.0,5.25520342]
[1773281730137,3.70252854,86.041,86.012,0.07375474]
[1773281731646,10.458,86.052,86.012,2.90995428]
[1773281731843,14.16052854,86.052,86.012,2.90995428]
[1773281732141,3.70252854,86.051,86.0,5.35747582]
[1773281735940,3.70252854,86.051,86.001,2.83519706]
[1773281737846,3.70252854,86.051,85.977,28.87130019]
[1773281737847,3.70252854,86.063,86.021,2.82808457]
[1773281739947,3.70252854,86.063,86.033,0.07397078]
[1773281741041,71.87592459,86.231,86.033,0.07397078]
[1773281741042,3.98031062,86.077,86.033,0.07397078]
[1773281741643,3.98031062,86.077,86.021,2.82808457]
[1773281742548,3.98031062,86.072,86.021,2.82808457]
[1773281744747,3.98031062,86.072,86.031,2.72004796]
[1773281745847,3.98031062,86.072,86.02,2.51871448]
[1773281746046,3.98031062,86.072,86.021,2.72004796]
[1773281747450,3.98031062,86.067,86.021,2.72004796]
[1773281747953,3.98031062,86.067,86.035,0.0735504]
[1773281751064,3.92489046,86.059,86.015,36.58]
[1773281751459,3.92489046,86.059,86.011,2.77880877]
[1773281751762,3.92489046,86.056,86.011,2.77880877]
[1773281759572,3.92489046,86.056,86.013,2.73634508]
[1773281761368,3.92489046,86.05,86.0,2.51871448]
[1773281761672,3.92489046,86.05,85.991,36.58]
[1773281761673,3.92489046,86.049,85.992,2.73703438]
[1773281762166,3.92489046,86.046,85.992,2.73703438]
[1773281762762,0.07326079,86.028,85.992,2.73703438]
[1773281770069,0.07326079,86.028,86.001,2.73730024]
[1773281771473,3.92489046,86.047,86.011,2.73771547]
[1773281777880,2.51871448,86.06,85.981,65.45130019]
[1773281777881,3.92489046,86.045,86.006,2.64317404]
[1773281779175,3.92489046,86.045,86.017,0.0737776]
[1773281784181,14.27763545,86.041,86.017,0.0737776]
[1773281784778,3.81863545,86.04,86.017,0.0737776]
[1773281785276,3.81863545,86.04,85.935,11.62]
[1773281785277,3.81863545,86.038,85.996,2.60338572]
[1773281785886,3.81863545,86.036,85.996,2.60338572]
[1773281788284,3.81863545,86.03,85.996,2.60338572]